Cogmind - Beta 15 @@@ ROGUE MODE // 2025.06.01 @ 20:56:32 Player: Peck-R-INE-1 Result: Destroyed by P-70 Sage with Tesla Rifle Performance ------------- Evolutions (5) 2500 Regions Visited (6) 1200 Robots Destroyed (44) 220 Value Destroyed (1431) 1431 Prototype IDs (15) 300 Alien Tech Used (0) 0 Bonus (935) 935 TOTAL SCORE: 6586 Bonus ------- Follower Combat Kills 148 Registered with UFD 300 Met Optimus in HQ 500 Friendly Fire -13 Cogmind --------- Core Integrity 0/1000 Matter 194/300 Energy 48/100 System Corruption 1% Temperature Cool (30) Movement Core (100) Ox1 Location -5/Factory Parts ------- > --- POWER (1) -------- (None) > --- PROPULSION (4) --- (None) > --- UTILITY (9) ------ (None) > --- WEAPON (3) ------- Heavy Gatling Laser > --- INVENTORY (5) ---- Medium Storage Unit Advanced Signal Interpreter Disruptor Cannon Gauss Cannon DRS Beacon (Ready) Peak State ------------ > --- POWER ------------ Light Fission Core > --- PROPULSION ------- Carbon-fiber Leg Flexi-carbon Leg > --- UTILITY ---------- Large Storage Unit Enhanced Optical Array Active Sensor Suite Advanced Targeting Computer Advanced Targeting Computer System Shield A0-MCA's Component Scanner > --- WEAPON ----------- Improved Arc Projector Gauss Rifle Gauss Rifle > --- INVENTORY -------- Light Angular Momentum Engine Medium Storage Unit Improved Signal Interpreter High-powered Tractor Beam Field Recycling Unit Force Rifle Disruptor Cannon Disruptor Cannon Compact Ion Cannon Gauss Rifle Gauss Cannon Gauss Cannon Rocket Launcher CPS Tube DRS Beacon [Rating: 84] Favorites ----------- Power Ion Engine Engine Ion Engine Power Core Light Fission Core Propulsion Light Treads Treads Light Treads Leg Armored Leg Wheel Compact Wheel Flight Unit Flight Unit Utility Large Storage Unit Device Weight Redist. System Storage Large Storage Unit Processor A0-MCA's Component Scanner Hackware System Shield Protection Improved Light Armor Plating Weapon Light Assault Rifle Energy Gun Pulse Rifle Energy Cannon Beam Cannon Ballistic Gun Light Assault Rifle Ballistic Cannon Light Cannon Launcher Rocket Launcher Special Weapon CPS Tube Build | -11 -10 -10 -10 -8 -6 -5 ------- Run | Yrd Mat Min Sub Scr Fac Fac Slots Evolved 10 | . . . . . 8 2 Power . | . . . . . . . Propulsion 2 | . . . . . 2 . Utility 7 | . . . . . 6 1 Weapon 1 | . . . . . . 1 Parts Attached 81 | 7 8 5 1 15 37 8 Power 13 | 1 2 2 . 2 5 1 Engine 9 | 1 2 2 . 2 2 . Core 4 | . . . . . 3 1 Reactor . | . . . . . . . Propulsion 17 | 1 1 1 . 6 8 . Treads 4 | 1 1 . . 2 . . Leg 11 | . . . . 3 8 . Wheel 1 | . . . . 1 . . Hover . | . . . . . . . Flight 1 | . . 1 . . . . Utility 23 | 3 2 . . 3 14 1 Device 12 | 3 1 . . 1 6 1 Storage 2 | . 1 . . 1 . . Processor 5 | . . . . 1 4 . Hackware 1 | . . . . . 1 . Protection 3 | . . . . . 3 . Artifact . | . . . . . . . Weapon 28 | 2 3 2 1 4 10 6 Energy Gun 6 | 1 . . . 1 2 2 Energy Cannon 4 | . 2 . . . 1 1 Ballistic Gun 11 | 1 . 1 1 2 4 2 Ballistic Cannon 3 | . 1 . . 1 . 1 Launcher 2 | . . 1 . . 1 . Special Weapon 2 | . . . . . 2 . Impact Weapon . | . . . . . . . Slashing Weapon . | . . . . . . . Piercing Weapon . | . . . . . . . Special Melee Weapon . | . . . . . . . Unidentified Prototypes 1 | . . . . . . 1 Parts Lost 40 | . 2 2 . . 25 11 Power 9 | . 2 1 . . 3 3 Propulsion 11 | . . 1 . . 8 2 Utility 10 | . . . . . 9 1 Weapon 10 | . . . . . 5 5 Highest Loss Streak 10 | . 1 1 . . 7 10 To Critical Strikes 1 | . . 1 . . . . Average Backups 10 | 2 6 9 10 12 11 11 Power . | . 1 . . . . . Propulsion . | . . . . . . . Utility 4 | 1 3 4 5 6 3 3 Weapon 4 | . 1 4 5 4 6 6 Tool/Special . | . . . . . . . Unused Backups 15 | . . . . 6 1 8 Power . | . . . . . . . Propulsion 1 | . . . . 1 . . Utility 10 | . . . . 3 1 6 Weapon 3 | . . . . 1 . 2 Tool/Special 1 | . . . . 1 . . Average Slot Usage (%) 93 | . 96 99 100 99 82 67 Engine 10 | . 13 14 14 14 2 . Treads 12 | . 25 14 14 15 . . Leg 7 | . . . . 9 14 9 Flight 3 | . . 13 14 2 . . Device 11 | . 14 14 14 12 9 4 Storage 11 | . 13 14 14 14 6 4 Processor 5 | . . . . 1 17 20 Hackware 1 | . . . . . 5 4 Protection 1 | . . . . . 7 . Energy Gun 5 | . 8 . . 8 2 1 Energy Cannon 3 | . 5 13 . . 2 . Ballistic Gun 14 | . 12 7 28 19 5 12 Ballistic Cannon 1 | . 1 6 . . 1 . Peak Build Rating 84 | 8 9 9 8 29 62 84 Average Rating 26 | 4 8 8 8 19 53 73 On Entrance 16 | . 8 8 9 8 29 52 Naked Turns 74 | . . . . . . 74 Heaviest Build 52 | 8 20 21 18 39 52 45 Greatest Support 59 | 20 40 20 20 40 59 35 Greatest Overweight (x) 11 | . . 1 . 1 11 1 Average Overweight (x) . | . . . . . . . Largest Inventory Capacity 15 | 5 10 10 10 15 15 15 Average Capacity 12 | 5 9 10 10 13 15 13 Most Carried 15 | 4 8 10 10 15 15 15 Average Carried 11 | 3 6 9 10 12 12 12 Final Capacity 15 | 5 10 10 10 15 15 5 Final Carried 15 | 4 8 10 10 14 15 5 Class Distribution -------------------- 66% | Mutant 18% | Scavenger-Mutant 9% | Scavenger-Skirmisher 5% | Derelict-Mutant Dominant Class ---------------- Mutant | -10/Materials Mutant | -10/Mines Scavenger-Mutant | -10/Subcaves Mutant | -8/Scraptown Mutant | -6/Factory Scavenger-Skirmisher | -5/Factory Resources | -11 -10 -10 -10 -8 -6 -5 ----------- Run | Yrd Mat Min Sub Scr Fac Fac Matter Collected 1856 | 294 270 95 . 231 853 113 Remotely 365 | 103 . . . . 262 . Salvage Created 2221 | 130 421 124 . 66 1187 293 Parts 119 | 10 23 6 . 4 62 14 Haulers Intercepted 1 | . 1 . . . . . Recyclers Shooed 10 | . 4 1 . . 3 2 Parts Field Recycled . | . . . . . . . Retrieved Matter . | . . . . . . . Parts Self-Destructed . | . . . . . . . Prevented . | . . . . . . . Kills | -11 -10 -10 -10 -8 -6 -5 ------- Run | Yrd Mat Min Sub Scr Fac Fac Combat Hostiles Destroyed 29 | . 8 3 . 1 14 3 Guns 12 | . 6 . . 1 2 3 Cannons 9 | . 2 1 . . 6 . AOE 8 | . . 2 . . 6 . Classes Destroyed 13 | 2 4 . . 1 5 1 Builder 2 | . . . . . 1 1 Tunneler 3 | 3 . . . . . . Hauler 1 | . 1 . . . . . Recycler 7 | 1 1 1 . . 3 1 Watcher 2 | . 2 . . . . . Swarmer 6 | . 3 3 . . . . Grunt 13 | . 5 . . . 7 1 Sentry 1 | . . . . . 1 . Specialist 2 | . . . . . 2 . Hunter 4 | . . . . . 3 1 Programmer 1 | . . . . . . 1 Heavy 1 | . . . . . 1 . Scrapper 1 | . . . . 1 . . Best Kill Streak 5 | 2 4 3 . 1 5 2 Combat Bots Only 4 | . 3 3 . 1 4 1 Max Kills in Single Turn 2 | 1 1 2 . 1 2 1 Gunslinging . | . . . . . . . Exploded 2 | . . 2 . . 2 . Melee . | . . . . . . . Uniques/NPCs Destroyed . | . . . . . . . Combat | -11 -10 -10 -10 -8 -6 -5 -------- Run | Yrd Mat Min Sub Scr Fac Fac Hostile Shots Fired 489 | . 70 26 . 28 253 112 Missed 131 | . 20 10 . 8 65 28 Hits 358 | . 50 16 . 20 188 84 Projectile 358 | . 50 16 . 20 188 84 Critical Strikes 11 | . 2 1 . . 6 2 Part Disruptions 1 | . . . . . 1 . Damage Taken 6203 | . 659 162 . 269 3200 1913 Core 1793 | . 110 7 . 86 568 1022 Absorbed by Shields . | . . . . . . . Regen/Repaired (Parts) 322 | . 85 . . . . 237 Core Remaining (%) 50 | 100 . . . 18 33 . Volleys Fired 163 | 8 50 16 . 5 68 16 Largest 3 | 2 2 2 . 2 2 3 Hottest 174 | 60 120 90 . 88 145 174 Shots Fired 306 | 16 100 25 . 10 118 37 Gun 213 | 16 80 4 . 10 69 34 Cannon 79 | . 20 18 . . 40 1 Launcher 12 | . . 3 . . 7 2 Special 2 | . . . . . 2 . Kinetic 164 | 8 49 13 . 5 66 23 Thermal 110 | 8 51 9 . 5 35 2 Explosive 12 | . . 3 . . 7 2 Electromagnetic 18 | . . . . . 8 10 Robot Hit Streak 37 | 4 10 5 . 5 19 37 Robot Miss Streak 3 | 1 3 3 . 1 3 3 Penetration Max 1 | . . . . . 1 1 Secondary Targets 1 | . 1 . . . . . Max Gunslinging Chain 1 | . 1 . . . . . Shots Hit Robots 205 | 11 60 10 . 10 83 31 Core Hits 104 | 5 19 5 . 5 50 20 Critical Kills 1 | . 1 . . . . . Critical Parts Destroyed 3 | . . . . 1 1 1 Critical Strikes 4 | . 1 . . 1 1 1 Destroy 4 | . 1 . . 1 1 1 Melee Attacks . | . . . . . . . Impact . | . . . . . . . Slashing . | . . . . . . . Piercing . | . . . . . . . Sneak Attacks . | . . . . . . . Combat Hostiles . | . . . . . . . Follow-up Attacks . | . . . . . . . Damage Inflicted 4858 | 128 801 287 . 198 2512 932 Guns 2565 | 128 571 19 . 198 1094 555 Cannons 1163 | . 230 158 . . 775 . Explosions 1130 | . . 110 . . 643 377 Melee . | . . . . . . . Ramming . | . . . . . . . Kinetic 2015 | 62 377 90 . 112 986 388 Thermal 1586 | 66 424 197 . 86 755 58 Explosive 1020 | . . . . . 643 377 Electromagnetic 237 | . . . . . 128 109 Impact . | . . . . . . . Slashing . | . . . . . . . Piercing . | . . . . . . . Highest Corruption 1 | . 1 1 1 . . 1 Average Corruption 1 | . 1 1 1 . . 1 Corruption Purged . | . . . . . . . Corruption Blocked . | . . . . . . . Effects 15 | . 7 7 1 . . . Message Errors 1 | . . 1 . . . . Matter Fused 7 | . 3 3 1 . . . Heat Flow Errors 3 | . 2 1 . . . . Energy Discharges 2 | . 2 . . . . . Data Loss (minor) 2 | . . 2 . . . . Overload Shots . | . . . . . . . Overflow Damage 50 | . . 40 . . 3 7 Projectiles . | . . . . . . . Explosions 50 | . . 40 . . 3 7 Melee . | . . . . . . . Knockbacks 5 | . . 2 . . 3 . Impact . | . . . . . . . Kinetic 5 | . . 2 . . 3 . Secondary . | . . . . . . . Self-Inflicted Damage 28 | . . 6 . . . 22 Shots 2 | . . 1 . . . 1 Rammed . | . . . . . . . Targets Rammed . | . . . . . . . Kicked . | . . . . . . . Crushed . | . . . . . . . Highest Temperature 385 | . 225 181 . 150 385 188 Average Temperature 85 | . 86 41 . 53 89 102 Received Heat Transfer 1383 | . 381 42 . 72 564 324 Effects 2 | . . . . . 2 . Shutdowns 1 | . . . . . 1 . Energy Bleed 1 | . . . . . 1 . Siege Activations . | . . . . . . . Martial Activations . | . . . . . . . Shielding Activations . | . . . . . . . Robots Disrupted . | . . . . . . . Combat Hostiles . | . . . . . . . Robots Corrupted . | . . . . . . . Combat Hostiles . | . . . . . . . Parts Fried . | . . . . . . . Impact Corruptions . | . . . . . . . Robots Melted . | . . . . . . . Combat Hostiles . | . . . . . . . Parts Melted 2 | . . . . 1 1 . Heat Transferred 2700 | 150 931 335 . 173 1036 75 Parts Sabotaged . | . . . . . . . Parts Stolen . | . . . . . . . Parts Stripped . | . . . . . . . Power Chain Reactions . | . . . . . . . Alert | -11 -10 -10 -10 -8 -6 -5 ------- Run | Yrd Mat Min Sub Scr Fac Fac Maximum Alert Level . | . . . . . . . Low Security (%) 100 | 100 100 100 . . 100 100 Level 1 . | . . . . . . . Level 2 . | . . . . . . . Level 3 . | . . . . . . . Level 4 . | . . . . . . . Level 5 . | . . . . . . . High Security . | . . . . . . . Max Security . | . . . . . . . Peak Influence 144 | 10 122 126 . . 135 144 Initial 56 | . . 3 . . . 56 Average 26 | 1 42 35 . . 15 21 Influence Increases 1409 | 20 261 302 . . 461 365 Destroy 0b10 Robot/C 700 | . 160 200 . . 280 60 Destroy 0b10 Robot/NC 75 | 20 20 5 . . 20 10 Destroy Leader 186 | . 36 40 . . 80 30 Allied During Kill 20 | . . 20 . . . . Successful Hack 24 | . . . . . 12 12 Disable Machine 30 | . . 15 . . 15 . Destroy Structure 94 | . . 22 . . 54 18 Lose Combat Pursuer 180 | . 45 . . . . 135 Active Sensor Use 100 | . . . . . . 100 Influence Decreases 1265 | 20 252 303 8 . 344 338 Entered New Map 72 | . . 6 5 . . 61 Time Decay 917 | 20 232 294 3 . 191 177 Lost Part 276 | . 20 3 . . 153 100 Squads Dispatched 15 | . . . . . 9 6 Investigation 2 | . . . . . . 2 Extermination 2 | . . . . . 1 1 Reinforcement 7 | . . . . . 4 3 Assault . | . . . . . . . Garrison 4 | . . . . . 4 . Intercept . | . . . . . . . Searches Triggered . | . . . . . . . Construction Impeded 2 | . . . . . 1 1 Haulers Reinforced . | . . . . . . . Active Scanning Responses 1 | . . . . . . 1 Cargo Convoy Interrupts . | . . . . . . . Stealth | -11 -10 -10 -10 -8 -6 -5 --------- Run | Yrd Mat Min Sub Scr Fac Fac Distress Signals 2 | . 1 . . . . 1 Communications Jammed . | . . . . . . . Distress Signals . | . . . . . . . Times Spotted 71 | . 18 10 . 7 18 18 Peak Tracking Total 13 | . 6 3 . 4 3 13 Tactical Retreats 6 | . 1 . . . . 5 Traps | -11 -10 -10 -10 -8 -6 -5 ------- Run | Yrd Mat Min Sub Scr Fac Fac Traps Triggered 2 | . 1 . . . 1 . Indirectly . | . . . . . . . Trap Hack Attempts . | . . . . . . . Triggered . | . . . . . . . Disarmed . | . . . . . . . Reprogrammed . | . . . . . . . Reused . | . . . . . . . Traps Extracted . | . . . . . . . Installed . | . . . . . . . Triggered . | . . . . . . . Machines | -11 -10 -10 -10 -8 -6 -5 ---------- Run | Yrd Mat Min Sub Scr Fac Fac Machines Disabled 2 | . . 1 . . 1 . Max in Single Turn 1 | . . 1 . . 1 . Machines Repaired . | . . . . . . . Machines Dismantled . | . . . . . . . Machines Sabotaged . | . . . . . . . Overloaded Fab Kills . | . . . . . . . Hacking | -11 -10 -10 -10 -8 -6 -5 --------- Run | Yrd Mat Min Sub Scr Fac Fac Machines Accessed 19 | . 6 . 1 7 2 3 Terminals 8 | . 5 . . . 2 1 Fabricators . | . . . . . . . Repair Stations 3 | . 1 . . . . 2 Recycling Units . | . . . . . . . Scanalyzers . | . . . . . . . Garrison Access . | . . . . . . . Total Hacks 63 | . 12 . 3 33 9 6 Successful 48 | . 3 . 3 33 5 4 Failed 15 | . 9 . . . 4 2 Catastrophic 3 | . 2 . . . 1 . Database Lockouts . | . . . . . . . Manual 9 | . 3 . . . 5 1 Terminals 20 | . 9 . . . 9 2 Fabricators . | . . . . . . . Repair Stations 7 | . 3 . . . . 4 Recycling Units . | . . . . . . . Scanalyzers . | . . . . . . . Garrison Access . | . . . . . . . Terminal Hacks 41 | . 1 . 3 33 3 1 Record 37 | . . . 3 32 1 1 Prototype ID Bank 1 | . 1 . . . . . Open Door 1 | . . . . 1 . . Branch Access Points 1 | . . . . . 1 . Zone Layout 1 | . . . . . 1 . Fabricator Hacks . | . . . . . . . Repair Station Hacks 4 | . 2 . . . . 2 Scan Component 2 | . 1 . . . . 1 Repair 2 | . 1 . . . . 1 Recycling Unit Hacks . | . . . . . . . Scanalyzer . | . . . . . . . Garrison Access Hacks . | . . . . . . . Unauthorized Hacks 3 | . . . . . 2 1 Terminals 2 | . . . . . 2 . Botnet 2 | . . . . . 2 . Fabricators . | . . . . . . . Repair Stations 1 | . . . . . . 1 Patch 1 | . . . . . . 1 Recycling Units . | . . . . . . . Scanalyzers . | . . . . . . . Garrison Access . | . . . . . . . Data Cores Recovered . | . . . . . . . Used . | . . . . . . . Hacking Detections 8 | . 6 . . . . 2 Full Trace Events . | . . . . . . . Feedback Events . | . . . . . . . Feedback Blocked . | . . . . . . . Robot Schematics Acquired . | . . . . . . . Robots Built . | . . . . . . . Authchips . | . . . . . . . Time . | . . . . . . . Total Robot Build Rating . | . . . . . . . Part Schematics Acquired . | . . . . . . . Parts Built . | . . . . . . . Authchips . | . . . . . . . Time . | . . . . . . . Total Part Build Rating . | . . . . . . . Parts Repaired 2 | . 1 . . . . 1 Time 39 | . 26 . . . . 13 Parts Recycled . | . . . . . . . Recycled Matter . | . . . . . . . Retrieved Matter . | . . . . . . . Retrieved Components . | . . . . . . . Parts Scanalyzed . | . . . . . . . Part Schematics Acquired . | . . . . . . . Parts Damaged . | . . . . . . . Bothacking | -11 -10 -10 -10 -8 -6 -5 ------------ Run | Yrd Mat Min Sub Scr Fac Fac Used RIF Installer . | . . . . . . . Robots Hacked . | . . . . . . . Non-combat . | . . . . . . . Combat . | . . . . . . . Robot Hacks Applied . | . . . . . . . Relay Couplers Released . | . . . . . . . Fabnet Peak Effective % . | . . . . . . . Robots Rewired . | . . . . . . . Allies Hacked . | . . . . . . . Hacks Repelled . | . . . . . . . Allies | -11 -10 -10 -10 -8 -6 -5 -------- Run | Yrd Mat Min Sub Scr Fac Fac Total Allies 2 | . . 2 . . . . Largest Group 2 | . . 2 2 2 . . Highest-Rated Group 47 | . . 47 47 47 . . Highest-Rated Ally 31 | . . 31 31 31 . . Total Orders . | . . . . . . . Ally Attacks 20 | . . 15 . 5 . . Total Damage 447 | . . 348 . 99 . . Kills 8 | . . 7 . 1 . . Allies Corrupted . | . . . . . . . Allies Melted . | . . . . . . . Intel | -11 -10 -10 -10 -8 -6 -5 ------- Run | Yrd Mat Min Sub Scr Fac Fac Active Infowar (turns) 2672 | 120 621 . . . 1230 701 Optics 1931 | . . . . . 1230 701 A.S.S. 626 | . . . . . . 626 IFF 298 | . . . . . 298 . Terrain 1187 | 4 621 . . . 562 . Seismic 116 | 116 . . . . . . Robot Analysis Total . | . . . . . . . Derelict Logs Recovered 2 | . . 2 . . . . Drone Launches . | . . . . . . . Drone Recoveries . | . . . . . . . Exploration | -11 -10 -10 -10 -8 -6 -5 ------------- Run | Yrd Mat Min Sub Scr Fac Fac Turns Passed 7917 | 158 775 1158 178 3584 1284 780 Spaces Moved 4197 | 82 347 664 111 2046 526 421 Core 150 | 10 . . . 1 4 135 Treads 2331 | 72 347 664 111 1137 . . Legs 1619 | . . . . 811 522 286 Wheels 97 | . . . . 97 . . Hover . | . . . . . . . Flight . | . . . . . . . Fastest Speed 50 | 50 160 160 160 100 100 50 Average Speed 163 | 146 160 161 160 170 156 144 Slowest Speed 600 | 160 160 240 160 250 600 190 Overloaded Moves . | . . . . . . . Propulsion Burnouts . | . . . . . . . Robots Hopped . | . . . . . . . Potential Cave-ins . | . . . . . . . Cave-ins Triggered . | . . . . . . . Exploration Rate (%) 42 | 4 66 94 9 95 13 13 Regions Visited 6 Branch Regions 3 Pre-discovered Areas 2 | . . 1 1 . . . Known Exits Taken 1 | . . 1 . . . . Unknown Exits Taken 5 | 1 1 . 1 1 1 . Scrap Searched 7 | . . 1 . 6 . . Spaces Dug 13 | . . 13 . . . . Terrain Destroyed 101 | . . 31 . . 63 7 Melee . | . . . . . . . Projectile 3 | . . . . . 3 . AOE 98 | . . 31 . . 60 7 Terrain Rammed . | . . . . . . . Walls Destroyed . | . . . . . . . Machines Disabled . | . . . . . . . Actions | -11 -10 -10 -10 -8 -6 -5 --------- Run | Yrd Mat Min Sub Scr Fac Fac Total 4948 | 100 462 725 111 2135 854 561 Wait 359 | . 46 33 . 21 177 82 Move 4191 | 81 346 663 110 2045 525 421 Hop . | . . . . . . . Pick Up 72 | 4 6 5 . 19 19 19 Fast Attach 40 | 6 2 2 . 11 16 3 Attach 29 | . 3 1 . 3 14 8 Detach 3 | . . . . 2 . 1 Swap 47 | 1 8 2 1 2 28 5 Drop 44 | . 1 3 . 27 7 6 Fire 163 | 8 50 16 . 5 68 16 Melee . | . . . . . . . Ram . | . . . . . . . Kick . | . . . . . . . Crush . | . . . . . . . Escape Stasis . | . . . . . . . Rewire . | . . . . . . . Trap . | . . . . . . . Miscellaneous . | . . . . . . . Route ------- -11/Scrapyard -10/Materials (discovered 2 exits: [*Mat] / [*Min]) -10/Mines (discovered 3 exits: [*Mat x2] / *Sub) -10/Subcaves -8/Scraptown (discovered 2 exits: *Fac x2) -6/Factory (discovered 3 exits: *Fac / Low x2) -5/Factory History --------- Turn | Location | Event 7 | -11/Scrapyard | Discovered new exit (range 15) 159 | -11/Scrapyard | Entered Materials 300 | -10/Materials | Build established: Mutant 519 | -10/Materials | Repaired Lgt. Treads 639 | -10/Materials | Discovered new exit (range 5) 880 | -10/Materials | Discovered new exit (range 15) 934 | -10/Materials | Entered Mines 965 | -10/Mines | Learned location of Zion (-7) 1383 | -10/Mines | Received a Rocket Launcher from a helpful Derelict 1443 | -10/Mines | Identified exit to Subcaves 1524 | -10/Mines | Discovered new exit (range 4) 1624 | -10/Mines | A weapon hastily lodged in a ceiling crevice suddenly fell to the ground 1753 | -10/Mines | Discovered new exit (range 8) 1914 | -10/Mines | Build established: Scavenger-Mutant 2092 | -10/Mines | Entered Subcaves 2092 | -10/Subcaves | Accompanied by 2 allies 2093 | -10/Subcaves | Approached by a straggling Scientist 2097 | -10/Subcaves | Led the pair of lost Derelicts to an unsafe place 2192 | -10/Subcaves | Visited Clippyterm 2196 | -10/Subcaves | Learned location of Deep Caves (-7) 2262 | -10/Subcaves | Scientist uncovered a shortcut to Scraptown 2270 | -10/Subcaves | Entered Scraptown 2270 | -8/Scraptown | Accompanied by 2 allies 2270 | -8/Scraptown | System corruption cleaned by C-Scrubber 2571 | -8/Scraptown | Visited UFD Registry 2571 | -8/Scraptown | Registered with UFD as "Gammachip" 2593 | -8/Scraptown | Visited TADAMA 2645 | -8/Scraptown | Visited IN-MT5's Study 2678 | -8/Scraptown | Visited SPCMW 2782 | -8/Scraptown | Discovered new exit (range 6) 3068 | -8/Scraptown | Heard Great Nut preacher, LISTEN AND RECITE! 3199 | -8/Scraptown | Visited Assassins FH 3235 | -8/Scraptown | Visited Comm Corps 3236 | -8/Scraptown | Build established: Mutant 3376 | -8/Scraptown | Visited Spacefarers 3448 | -8/Scraptown | Visited Awakened 3967 | -8/Scraptown | Visited A0-MCA Data Center 3978 | -8/Scraptown | Given a B- rating by A0-MCA 3984 | -8/Scraptown | Found A0-MCA's Component Scanner 4055 | -8/Scraptown | Visited Scrapoid Pod Storage 4099 | -8/Scraptown | Visited Sword Containment 4188 | -8/Scraptown | Visited Abandonware Association 4231 | -8/Scraptown | Learned abandonware demo "KABOOM.EXE" 4231 | -8/Scraptown | Learned abandonware demo "MELTYB.EXE" 4272 | -8/Scraptown | Visited Derelict Rescue Squad 4292 | -8/Scraptown | Found DRS Beacon 4555 | -8/Scraptown | Discovered new exit (range 3) 4663 | -8/Scraptown | Visited Research Penetration Think Tank 4713 | -8/Scraptown | Visited LU-1G1's Boring Crew 5230 | -8/Scraptown | Visited Scrap Suit Storage 5317 | -8/Scraptown | Visited DA-N13 Charitable Foundation 5343 | -8/Scraptown | Found DCF Scrap (28 items) 5604 | -8/Scraptown | Met Optimus 5604 | -8/Scraptown | Accepted into 0bPrime 5662 | -8/Scraptown | Build established: Derelict-Mutant 5804 | -8/Scraptown | Civil war broke out across Scraptown 5847 | -8/Scraptown | Core integrity fell below 50% 5849 | -8/Scraptown | Lost 3 allies 5854 | -8/Scraptown | Core integrity fell below 20% 5854 | -8/Scraptown | Entered Factory 5854 | -6/Factory | Evolved 8 slots: Propulsion x2, Utility x6 6123 | -6/Factory | Build established: Mutant 6159 | -6/Factory | Identified exit to Lower Caves 6279 | -6/Factory | Garrison activated, responded to threat 6354 | -6/Factory | Lost 7 parts (1p2n3u1w) 6416 | -6/Factory | Lost 4 parts (1p1n2w) 6778 | -6/Factory | Lost 6 parts (1p2n3u) 6996 | -6/Factory | Lost 3 parts (1n1u1w) 7071 | -6/Factory | Discovered new exit (range 16) 7087 | -6/Factory | Core integrity fell below 50% 7101 | -6/Factory | Garrison activated, responded to threat 7121 | -6/Factory | Lost 4 parts (1n2u1w) 7121 | -6/Factory | Found Active Sensor Suite 7138 | -6/Factory | Entered another Factory area 7138 | -5/Factory | Evolved 2 slots: Utility x1, Weapon x1 7376 | -5/Factory | Build established: Scavenger-Skirmisher 7490 | -5/Factory | Repaired Lrg. Storage Unit 7839 | -5/Factory | Released all parts (8) 7848 | -5/Factory | Core integrity fell below 50% 7866 | -5/Factory | Lost 10 parts (2p2n1u5w) 7876 | -5/Factory | Core integrity fell below 20% 7918 | -5/Factory | Destroyed by P-70 Sage with Tesla Rifle Last Messages --------------- 07847_ R-10 Processor collects Force Rifle. 07848_ U-05 Engineer lays Concrete. 07849_ U-05 Engineer builds a Wall. 07849_ U-05 Engineer lays Concrete. 07849_ R-10 Processor collects Gauss Cannon. 07849_ Knocked back. 07849_ U-05 Engineer system corrupted by crushing effect. 07849_ U-05 Engineer lays Concrete. 07850_ R-10 Processor collects Disruptor Cannon. 07851_ U-05 Engineer lays Concrete. 07860_ U-05 Engineer builds a Wall. 07861_ U-05 Engineer lays Concrete. 07861_ G-50 Soldier knocked back. 07862_ Slug penetrates Wall. 07871_ Penetrated by Slug. 07896_ Dropped CPS Tube. 07898_ Acquired Med. Storage Unit. 07913_ Acquired Prototype Energy Gun. 07913_ Identified Hvy. Gatling Laser. 07917_ P-70 Sage destroyed. Map ----- +----------------------------------------------------+ | ?????????????????????????????????????????????????? | | ?????????????????????????????????????????????????? | | ?????????????????????????????????????????????????? | | ?????????????????????????????????????????????????? | | ?????????????????????????????????????????????????? | | ?????????????????????????????????????????????????? | | ?????????????????????????????????????????????????? | | ?????????????????????????????????????????????????? | | ?????????????????????????????????????????????????? | | ?????????????????????????????????????????????????? | | ?????????????????????????????????????????????????? | | ?????????????????????????????????????????????????? | | ?????????????????????????????????????????????????? | | ?????????????????????????????????????????????????? | | ?????????????????????????????????????????????????? | | ?????????????????????????????????????????????????? | | ?????????????????????????????????????????????????? | | ?????????????????????????????????????????????????? | | ?????????????????????????????????????????????????? | | ?????????????????????????????????????????????????? | | ?????????????????????????????????????????????????? | | ???????????????????????##############????????????? | | ???????????????????????# ! #????????????? | | ???????????????????????# ? #????????????? | | ???????????????????????# """"""" #????????????? | | ???????????????????????# @ """"""" #????????????? | | ???????????????????????# """"""" #????????????? | | ???????????????????????# """"""" #????????????? | | ???????????????????????# #????????????? | | ???????????????????????# #????????????? | | ???????????????????????# !! #????????????? | | ???????????????????????# !! #????????????? | | ???????????????????????# ! ! #????????????? | | ???????????????????????# [% #????????????? | | ??????????????????????###########p#############+## | | ??????????????????????# ! | | ??????????????????????# | | ??????????????????????# | | ??????????????????????# | | ??????????????????????# | | ??????????????????????# # T#########+######### | | ??????????????????????# ###??# #?????? | | ????????????????????? ??????# """ """ #?????? | | ????????????????????? ???????# """ """ #?????? | | ????????????????????? ????????# """ """|#?????? | | ?????????????????????? ?????????# #?????? | | ?????????????????????????????????# #?????? | | ?????????????????????????????????# #?????? | | ?????????????????????????????????# ] #?????? | | ????????????????????????? ???????####+######?????? | +----------------------------------------------------+ Best States ------------- Heat Dissipation 51 Energy Generation 18 Energy Capacity 300 Matter Stores 300 Matter Capacity 300 Sight Range 22 Robot Scan Range 20 Terrain Scan Range 20 Terrain Scan Density 10 Additional Mass Support 6 Armor Coverage 525 Phase Shifting 5 Evasion (%) 60 Targeting Accuracy 16 Recoil Reduction 2 Defensive Hacking 10 Item Schematics ----------------- None Robot Schematics ------------------ None Fabricated ------------ Nothing Repaired ---------- Lgt. Treads | 39% | -10/Materials Lrg. Storage Unit | 53% | -5/Factory Alien Tech Used ----------------- None Achievements -------------- Brute Force Use The Force Challenges ------------ None Game ------ Seed DrainedEtherialDriver Manual? 0 Play Time 01:59:20 Cumulative 36.5 hours Start 2025.05.31 @ 09:55:34 End 2025.06.01 @ 20:56:32 Sessions 3 Manual Loads 0 Difficulty Rogue Special Mode None Game No. 29 Rogue 29 Adventurer 0 Explorer 0 Win Type - Total 0 Types 0/0/0/0/0/0/0/0/0/0 Lore% 18 Gallery% 26 Achievement% 28 Wizard Run 0 Options --------- Layout 1 ASCII 0 Keyboard 0 Movement Mouse Keybinds 0 Fullscreen 2 Font 32/SmallcapsGlow Map View 77x35 Zoom Use 0% Tactical HUD 1 Map Filters NONE Filters NONE Steam 1 RUN: af7966c2-29e8-4d3f-9cf9-e80174914d32